Cogmind - Beta 9.4 @@@ ROGUE MODE // 2020.03.06 @ 21:54:00 Player: David Result: Destroyed by G-47 Trooper with Particle Gun Performance ------------- Evolutions (1) 500 Regions Visited (6) 1200 Robots Destroyed (34) 170 Value Destroyed (684) 684 Prototype IDs (1) 20 Alien Tech Used (0) 0 Bonus (300) 300 TOTAL SCORE: 2874 Bonus ------- Aligned with FarCom 300 Cogmind --------- Core Integrity 0/400 Matter 144/300 Energy 87/100 System Corruption 0% Temperature Cool (9) Movement Core (150) Ox2 Location -8/Mines Parts ------- > --- POWER (1) -------- (None) > --- PROPULSION (3) --- (None) > --- UTILITY (2) ------ Small Storage Unit Hacking Suite > --- WEAPON (3) ------- Makeshift Hammer > --- INVENTORY (6) ---- Improved Heat Sink Supersonic Drone Bay Peak State ------------ > --- POWER ------------ (None) > --- PROPULSION ------- (None) > --- UTILITY ---------- Small Storage Unit Hacking Suite > --- WEAPON ----------- YOLO Cannon > --- INVENTORY -------- Improved Heat Sink Shotgun Mining Laser Makeshift Hammer [Rating: 25] Favorites ----------- Power Light Ion Engine Engine Light Ion Engine Power Core Light Nuclear Core Propulsion Compact Wheel Wheel Compact Wheel Utility Small Storage Unit Device Sensor Array Storage Small Storage Unit Hackware Hacking Suite Weapon Shotgun Energy Gun Small Laser Energy Cannon Particle Cannon Ballistic Gun Shotgun Launcher Mini Grenade Launcher Special Weapon Mining Laser Impact Weapon Makeshift Hammer Build | -11 -10 -10 -9 -9 -9 -8 ------- Run | Scr Mat Min Mat Min Exi Min Slots Evolved 2 | . . . 2 . . . Power . | . . . . . . . Propulsion 1 | . . . 1 . . . Utility . | . . . . . . . Weapon 1 | . . . 1 . . . Parts Attached 25 | 6 4 1 7 . 2 5 Power 4 | 1 . 1 2 . . . Engine 3 | 1 . 1 1 . . . Core 1 | . . . 1 . . . Reactor . | . . . . . . . Propulsion 3 | 2 . . . . . 1 Treads . | . . . . . . . Leg . | . . . . . . . Wheel 3 | 2 . . . . . 1 Hover . | . . . . . . . Flight . | . . . . . . . Utility 3 | 1 . . 1 . 1 . Device 1 | . . . 1 . . . Storage 1 | 1 . . . . . . Processor . | . . . . . . . Hackware 1 | . . . . . 1 . Protection . | . . . . . . . Artifact . | . . . . . . . Weapon 15 | 2 4 . 4 . 1 4 Energy Gun 1 | 1 . . . . . . Energy Cannon 2 | . 1 . . . 1 . Ballistic Gun 8 | 1 3 . 2 . . 2 Ballistic Cannon . | . . . . . . . Launcher 2 | . . . 2 . . . Special Weapon 1 | . . . . . . 1 Impact Weapon 1 | . . . . . . 1 Slashing Weapon . | . . . . . . . Piercing Weapon . | . . . . . . . Special Melee Weapon . | . . . . . . . Unidentified Prototypes 1 | . . . . . 1 . Parts Lost 11 | . . . 3 5 . 3 Power 2 | . . . 1 1 . . Propulsion 3 | . . . 1 1 . 1 Utility 1 | . . . 1 . . . Weapon 5 | . . . . 3 . 2 Highest Loss Streak 5 | . . . 3 5 . 2 Average Slot Usage (%) 66 | . 84 85 74 60 22 53 Engine 6 | . 14 14 3 9 . . Core 1 | . . . 5 . . . Wheel 16 | . 28 28 18 10 . 7 Storage 12 | . 14 14 11 11 11 11 Hackware 3 | . . . . . 11 11 Ballistic Gun 20 | . 21 28 31 19 . 8 Launcher 1 | . . . 1 10 . . Special Weapon 1 | . . . . . . 7 Impact Weapon 1 | . . . . . . 7 Naked Turns . | . . . . . . . Heaviest Build 19 | 9 13 13 19 14 4 11 Greatest Support 32 | 32 32 32 32 16 3 10 Greatest Overweight (x) 2 | . . . . 1 1 2 Average Overweight (x) . | . . . . . 1 1 Largest Inventory Capacity 6 | 6 6 6 6 6 6 6 Average Capacity 5 | 4 6 6 6 6 6 6 Most Carried 6 | 3 4 5 6 5 6 5 Average Carried 3 | . 1 4 4 5 4 2 Final Capacity 6 | 6 6 6 6 6 6 6 Final Carried 5 | . 4 5 5 5 5 2 Class Distribution -------------------- 76% | Mutant 16% | Gunner 7% | Skirmisher Dominant Class ---------------- Mutant | -10/Materials Mutant | -10/Mines Gunner | -9/Materials Mutant | -9/Mines Mutant | -9/Exiles Mutant | -8/Mines Resources | -11 -10 -10 -9 -9 -9 -8 ----------- Run | Scr Mat Min Mat Min Exi Min Matter Collected 812 | 211 131 58 353 . . 59 Remotely . | . . . . . . . Salvage Created 694 | . 134 43 440 2 . 75 Parts 68 | . 11 9 45 2 . 1 Haulers Intercepted . | . . . . . . . Recyclers Shooed 2 | . . . 2 . . . Parts Field Recycled . | . . . . . . . Retrieved Matter . | . . . . . . . Parts Self-Destructed . | . . . . . . . Prevented . | . . . . . . . Kills | -11 -10 -10 -9 -9 -9 -8 ------- Run | Scr Mat Min Mat Min Exi Min Combat Hostiles Destroyed 25 | . 3 4 17 . . 1 Guns 21 | . 3 4 14 . . . AOE 3 | . . . 3 . . . Classes Destroyed 8 | . 2 1 3 1 . 1 Worker 2 | . . . . . . 2 Builder 1 | . . . 1 . . . Tunneler 2 | . . . . 1 . 1 Operator 1 | . . . 1 . . . Watcher 3 | . 1 . 2 . . . Swarmer 13 | . . 4 9 . . . Grunt 10 | . 3 . 6 . . 1 Sentry 2 | . . . 2 . . . Best Kill Streak 5 | . 3 4 5 1 . 2 Combat Bots Only 4 | . 3 3 4 . . 1 Max Kills in Single Turn 2 | . 1 2 2 1 . 1 Gunslinging 1 | . . 1 1 . . . Exploded 2 | . . . 2 . . . Melee . | . . . . . . . Uniques/NPCs Destroyed . | . . . . . . . Combat | -11 -10 -10 -9 -9 -9 -8 -------- Run | Scr Mat Min Mat Min Exi Min Damage Taken 1333 | . 77 139 397 492 . 228 Core 512 | . 47 57 52 245 . 111 Absorbed by Shields . | . . . . . . . Core Remaining (%) 79 | 100 . 58 . . . . Volleys Fired 76 | . 14 9 36 1 . 16 Largest 3 | . 2 2 3 3 . 1 Hottest 100 | . 91 46 76 76 . 100 Shots Fired 164 | . 27 18 100 3 . 16 Gun 141 | . 22 18 95 2 . 4 Cannon 5 | . 5 . . . . . Launcher 6 | . . . 5 1 . . Special 12 | . . . . . . 12 Kinetic 135 | . 16 18 95 2 . 4 Thermal 23 | . 11 . . . . 12 Explosive 6 | . . . 5 1 . . Electromagnetic . | . . . . . . . Robot Hit Streak 12 | . 6 4 12 . . 4 Robot Miss Streak 8 | . 4 8 5 . . 2 Penetration Max . | . . . . . . . Secondary Targets 2 | . . 1 1 . . . Max Gunslinging Chain 1 | . . 1 1 . . . Shots Hit Robots 97 | . 12 9 63 . . 13 Core Hits 56 | . 9 4 36 2 . 5 Critical Hits . | . . . . . . . Critical Kills . | . . . . . . . Critical Parts Destroyed . | . . . . . . . Melee Attacks 10 | . . . . . . 10 Impact 10 | . . . . . . 10 Slashing . | . . . . . . . Piercing . | . . . . . . . Sneak Attacks 1 | . . . . . . 1 Combat Hostiles . | . . . . . . . Follow-up Attacks . | . . . . . . . Damage Inflicted 1771 | . 206 102 1018 36 . 409 Guns 1031 | . 166 102 724 . . 39 Cannons 40 | . 40 . . . . . Explosions 324 | . . . 288 36 . . Melee 322 | . . . . . . 322 Ramming 6 | . . . 6 . . . Kinetic 1008 | . 143 102 724 . . 39 Thermal 111 | . 63 . . . . 48 Explosive 324 | . . . 288 36 . . Electromagnetic . | . . . . . . . Impact 322 | . . . . . . 322 Slashing . | . . . . . . . Piercing . | . . . . . . . Highest Corruption . | . . . . . . . Average Corruption . | . . . . . . . Corruption Purged . | . . . . . . . Overload Shots . | . . . . . . . Overflow Damage 92 | . . . 5 . . 87 Projectiles . | . . . . . . . Explosions 5 | . . . 5 . . . Melee 87 | . . . . . . 87 Knockbacks 1 | . . . . . . 1 Impact 1 | . . . . . . 1 Kinetic . | . . . . . . . Secondary . | . . . . . . . Self-Inflicted Damage 44 | . . . 3 41 . . Shots 1 | . . . . 1 . . Rammed 2 | . 1 . 1 . . . Targets Rammed 2 | . 1 . 1 . . . Kicked . | . . . . . . . Crushed . | . . . . . . . Highest Temperature 192 | . 192 . 24 2 . 9 Average Temperature 32 | . 71 . 9 2 . 6 Received Heat Transfer 276 | . 42 . 99 . . 135 Siege Activations . | . . . . . . . Robots Corrupted . | . . . . . . . Combat Hostiles . | . . . . . . . Parts Fried 1 | . . . . . . 1 Impact Corruptions 4 | . . . . . . 4 Robots Melted . | . . . . . . . Combat Hostiles . | . . . . . . . Parts Melted . | . . . . . . . Heat Transferred 224 | . 124 . . . . 100 Parts Sabotaged . | . . . . . . . Parts Stolen . | . . . . . . . Parts Stripped . | . . . . . . . Power Chain Reactions . | . . . . . . . Missiles Intercepted . | . . . . . . . Alert | -11 -10 -10 -9 -9 -9 -8 ------- Run | Scr Mat Min Mat Min Exi Min Peak Influence 396 | . 129 139 396 118 . 20 Average Influence 102 | . 73 119 181 109 . 10 Maximum Alert Level 1 | . . . 1 . . . Low Security (%) 89 | 100 100 100 63 100 . 100 Level 1 10 | . . . 36 . . . Level 2 . | . . . . . . . Level 3 . | . . . . . . . Level 4 . | . . . . . . . Level 5 . | . . . . . . . High Security . | . . . . . . . Max Security . | . . . . . . . Squads Dispatched 5 | . 2 . 3 . . . Investigation 1 | . . . 1 . . . Extermination . | . . . . . . . Reinforcement 4 | . 2 . 2 . . . Assault . | . . . . . . . Garrison . | . . . . . . . Intercept . | . . . . . . . Construction Impeded . | . . . . . . . Haulers Reinforced . | . . . . . . . Stealth | -11 -10 -10 -9 -9 -9 -8 --------- Run | Scr Mat Min Mat Min Exi Min Distress Signals 2 | . . . 2 . . . Communications Jammed . | . . . . . . . Distress Signals . | . . . . . . . Times Spotted 47 | . 6 7 26 2 . 6 Peak Tracking Total 6 | . 3 3 6 2 . 6 Tactical Retreats 3 | . . 1 . . . 2 Traps | -11 -10 -10 -9 -9 -9 -8 ------- Run | Scr Mat Min Mat Min Exi Min Traps Triggered 1 | . . . 1 . . . Indirectly . | . . . . . . . Trap Hack Attempts . | . . . . . . . Triggered . | . . . . . . . Disarmed . | . . . . . . . Reprogrammed . | . . . . . . . Reused . | . . . . . . . Traps Extracted . | . . . . . . . Installed . | . . . . . . . Triggered . | . . . . . . . Machines | -11 -10 -10 -9 -9 -9 -8 ---------- Run | Scr Mat Min Mat Min Exi Min Machines Disabled 2 | . . . 2 . . . Max in Single Turn 2 | . . . 2 . . . Machines Sabotaged . | . . . . . . . Garrisons Compromised . | . . . . . . . Overloaded Fab Kills . | . . . . . . . Fab Network Shutdowns . | . . . . . . . Hacking | -11 -10 -10 -9 -9 -9 -8 --------- Run | Scr Mat Min Mat Min Exi Min Machines Accessed 9 | . 2 . 7 . . . Terminals 6 | . 1 . 5 . . . Fabricators . | . . . . . . . Repair Stations . | . . . . . . . Recycling Units 1 | . 1 . . . . . Scanalyzers 2 | . . . 2 . . . Garrison Access . | . . . . . . . Total Hacks 25 | . 5 . 20 . . . Successful 15 | . 3 . 12 . . . Failed 10 | . 2 . 8 . . . Catastrophic 4 | . 1 . 3 . . . Database Lockouts . | . . . . . . . Manual 1 | . . . . . 1 . Terminals 18 | . 4 . 14 . . . Fabricators . | . . . . . . . Repair Stations . | . . . . . . . Recycling Units 1 | . 1 . . . . . Scanalyzers 6 | . . . 6 . . . Garrison Access . | . . . . . . . Terminal Hacks 9 | . 2 . 7 . . . Record 5 | . . . 5 . . . Dispatch Records 1 | . . . 1 . . . Registered Components 1 | . 1 . . . . . Zone Layout 2 | . 1 . 1 . . . Fabricator Hacks . | . . . . . . . Repair Station Hacks . | . . . . . . . Recycling Unit Hacks 1 | . 1 . . . . . Retrieve Components 1 | . 1 . . . . . Scanalyzer 5 | . . . 5 . . . Insert Component 2 | . . . 2 . . . Analyze 3 | . . . 3 . . . Garrison Access Hacks . | . . . . . . . Unauthorized Hacks . | . . . . . . . Terminals . | . . . . . . . Fabricators . | . . . . . . . Repair Stations . | . . . . . . . Recycling Units . | . . . . . . . Scanalyzers . | . . . . . . . Garrison Access . | . . . . . . . Data Cores Recovered . | . . . . . . . Used . | . . . . . . . Hacking Detections 8 | . 1 . 7 . . . Full Trace Events . | . . . . . . . Feedback Events . | . . . . . . . Feedback Blocked . | . . . . . . . Robot Schematics Acquired . | . . . . . . . Robots Built . | . . . . . . . Matter . | . . . . . . . Time . | . . . . . . . Total Robot Build Rating . | . . . . . . . Part Schematics Acquired 1 | . . . 1 . . . Parts Built . | . . . . . . . Matter . | . . . . . . . Time . | . . . . . . . Total Part Build Rating . | . . . . . . . Parts Repaired . | . . . . . . . Time . | . . . . . . . Parts Recycled . | . . . . . . . Recycled Matter . | . . . . . . . Retrieved Matter . | . . . . . . . Retrieved Components 9 | . 9 . . . . . Parts Scanalyzed 1 | . . . 1 . . . Part Schematics Acquired 1 | . . . 1 . . . Parts Damaged . | . . . . . . . Bothacking | -11 -10 -10 -9 -9 -9 -8 ------------ Run | Scr Mat Min Mat Min Exi Min Used RIF Installer . | . . . . . . . Robots Hacked . | . . . . . . . Non-combat . | . . . . . . . Combat . | . . . . . . . Robot Hacks Applied . | . . . . . . . Relay Couplers Released . | . . . . . . . Robots Rewired . | . . . . . . . Allies Hacked . | . . . . . . . Hacks Repelled . | . . . . . . . Allies | -11 -10 -10 -9 -9 -9 -8 -------- Run | Scr Mat Min Mat Min Exi Min Total Allies . | . . . . . . . Largest Group . | . . . . . . . Highest-Rated Group . | . . . . . . . Highest-Rated Ally . | . . . . . . . Total Orders . | . . . . . . . Ally Attacks . | . . . . . . . Total Damage . | . . . . . . . Kills . | . . . . . . . Allies Corrupted . | . . . . . . . Allies Melted . | . . . . . . . Intel | -11 -10 -10 -9 -9 -9 -8 ------- Run | Scr Mat Min Mat Min Exi Min Robot Analysis Total . | . . . . . . . Derelict Logs Recovered 2 | . . 1 . 1 . . Drone Launches . | . . . . . . . Drone Recoveries . | . . . . . . . Exploration | -11 -10 -10 -9 -9 -9 -8 ------------- Run | Scr Mat Min Mat Min Exi Min Turns Passed 1937 | 53 222 417 504 133 212 396 Spaces Moved 1500 | 40 168 367 330 130 208 257 Core 302 | 4 . . . 10 208 80 Treads . | . . . . . . . Legs . | . . . . . . . Wheels 1198 | 36 168 367 330 120 . 177 Hover . | . . . . . . . Flight . | . . . . . . . Fastest Speed 50 | 50 100 100 100 100 100 80 Average Speed 100 | 95 100 100 100 100 100 102 Slowest Speed 150 | 100 100 100 100 100 100 150 Overloaded Moves . | . . . . . . . Propulsion Burnouts . | . . . . . . . Robots Hopped . | . . . . . . . Cave-ins Triggered . | . . . . . . . Exploration Rate (%) 38 | 3 25 78 42 17 60 43 Regions Visited 6 Branch Regions 4 Pre-discovered Areas . | . . . . . . . Known Exits Taken . | . . . . . . . Unknown Exits Taken 6 | 1 1 1 1 1 1 . Scrap Searched 1 | . . 1 . . . . Spaces Dug 4 | . . . . . . 4 Terrain Destroyed 59 | . . . 41 14 . 4 Melee . | . . . . . . . Projectile 4 | . . . . . . 4 AOE 55 | . . . 41 14 . . Actions | -11 -10 -10 -9 -9 -9 -8 --------- Run | Scr Mat Min Mat Min Exi Min Total 1759 | 55 198 399 425 130 212 340 Wait 115 | . . 20 45 . . 50 Move 1494 | 39 167 366 329 129 207 257 Hop . | . . . . . . . Pick Up 26 | 8 8 2 5 . 2 1 Fast Attach . | . . . . . . . Attach 22 | 6 4 1 4 . 2 5 Detach 1 | . . . . . . 1 Swap 3 | . . . 3 . . . Drop 10 | 2 4 1 2 . 1 . Fire 76 | . 14 9 36 1 . 16 Melee 10 | . . . . . . 10 Ram 2 | . 1 . 1 . . . Kick . | . . . . . . . Crush . | . . . . . . . Escape Stasis . | . . . . . . . Rewire . | . . . . . . . Trap . | . . . . . . . Miscellaneous . | . . . . . . . Route ------- -11/Scrapyard -10/Materials -10/Mines (discovered 2 exits: *Mat x2) -9/Materials (discovered 3 exits: *Mat x2 / [*Min]) -9/Mines (discovered 2 exits: *Mat / *Exi) -9/Exiles -8/Mines History --------- Turn | Location | Event 29 | -11/Scrapyard | Discovered new exit (range 15) 54 | -11/Scrapyard | Entered Materials 179 | -10/Materials | Discovered new exit (range 12) 276 | -10/Materials | Entered Mines 320 | -10/Mines | Build established: Mutant 329 | -10/Mines | A weapon hastily lodged in a ceiling crevice suddenly fell to the ground 425 | -10/Mines | Learned location of 1 exit from Materials 559 | -10/Mines | Discovered new exit (range 14) 598 | -10/Mines | Discovered new exit (range 12) 693 | -10/Mines | Entered Materials 693 | -9/Materials | Evolved 2 slots: Propulsion x1, Weapon x1 694 | -9/Materials | Identified exit to Materials 916 | -9/Materials | Discovered exit to Materials (range 10) 1035 | -9/Materials | Discovered new exit (range 15) 1105 | -9/Materials | Lost 3 parts (1p1n1u) 1197 | -9/Materials | Entered Mines 1217 | -9/Mines | Learned Materials emergency access door positions 1228 | -9/Mines | Deemed a non-threat by the Exiles lab entrance 1229 | -9/Mines | Discovered new exit (range 5) 1280 | -9/Mines | Discovered exit to Materials (range 8) 1303 | -9/Mines | Assembled infested the area 1323 | -9/Mines | Core integrity fell below 50% 1330 | -9/Mines | Entered Exiles 1355 | -9/Exiles | Met 8R-AWN 1357 | -9/Exiles | Lost 5 parts (1p1n3w) 1370 | -9/Exiles | Met EX-HEX 1400 | -9/Exiles | Met EX-BIN 1411 | -9/Exiles | Aligned with FarCom system 1412 | -9/Exiles | Given EX-Vault access code 1435 | -9/Exiles | Opened EX-Vault 1441 | -9/Exiles | Found Prototype Energy Cannon 1442 | -9/Exiles | Identified YOLO Cannon 1448 | -9/Exiles | Found Prototype Device 1470 | -9/Exiles | Warned to stay clear of 0b10 Research branches 1498 | -9/Exiles | Met EX-DEC 1533 | -9/Exiles | Discovered new exit (range 10) 1542 | -9/Exiles | Left Exiles lab with Supersonic Drone Bay 1542 | -9/Exiles | Entered Mines 1928 | -8/Mines | Core integrity fell below 20% 1938 | -8/Mines | Destroyed by G-47 Trooper with Particle Gun Last Messages --------------- 01812_ T-07 Excavator is excavating. 01812_ U-05 Engineer lays Concrete. 01814_ U-05 Engineer builds a Wall. 01817_ U-05 Engineer lays Concrete. 01817_ T-07 Excavator is excavating. 01821_ U-05 Engineer lays Concrete. 01821_ T-07 Excavator is excavating. 01822_ U-05 Engineer builds a Wall. 01822_ U-05 Engineer lays Concrete. 01824_ U-05 Engineer forms the Earth. 01826_ U-05 Engineer builds a Wall. 01826_ T-07 Excavator is excavating. 01828_ U-05 Engineer lays Concrete. 01842_ K-01 Serf collects debris. 01878_ Shotgun destroyed. 01921_ Mining Laser destroyed. 01923_ Wheel destroyed. 01928_ Destroyed Aluminum Leg. 01928_ G-47 Trooper system corrupted by crushing effect. 01929_ G-47 Trooper system terminally corrupted. Map ----- +----------------------------------------------------+ | | | | | | | | | | | | | ??????????????????????????????? | | ??????????????????????????????? | | ???##?????????????????????????? | | ??? ?????????????????????????? | | ??# ?????????????????????????? | | ??# "????????????????????????? | | ??# "????????????????????????? | | ??# "????????????????????????? | | ??# ????????????????????????? | | ??# ""???????????????????????? | | ??# """ #????????????????????? | | ??# """ #????????????????????? | | ??# #????????????????????? | | ??# """ #????????????????????? | | ??# """ #????????????????????? | | ??# """ #????????????????????? | | ??# #????????????????????? | | ??###g####????????????????????? | | ????#g#####???????????????????? | | ????# @ #???????????????????? | | ????# b #???????????????????? | | ????#### #???????????????????? | | ???????#gg#???????????????????? | | ???????# #?####??????????????? | | ???????# #?# ##?????????????? | | ???????# #?# ###?????????"?? | | ???????# ### ####??????""" | | ???????# ##???? """ | | ???????# #???? | | ???????####### #???? | | ?????????????## ##??# # | | ??????????????##### ### #? | | ??????????????????## #? | | ???????????????????# #? | | ???????????????????## #? | | ????????????????????## ##? | | ?????????????????????# ###?? | | ????????????????????## #???? | | ???????????????????## ###?? | | ????????????????#### ##? | | ???????????????## #? | | ???????????????# #? | | ???????????????# ## | | ???????????????# | +----------------------------------------------------+ Best States ------------- Heat Dissipation 28 Energy Generation 14 Energy Capacity 160 Matter Stores 300 Matter Capacity 300 Sight Range 16 Robot Scan Range 10 Terrain Scan Density 10 Evasion (%) 44 Offensive Hacking 10 Item Schematics ----------------- Hacking Suite | -9/Materials | Scanalyzed Robot Schematics ------------------ None Fabricated ------------ Nothing Alien Tech Used ----------------- None Achievements -------------- None Challenges ------------ None Game ------ Seed PointTitaniumArmor Manual? 0 Play Time 00:25:09 Cumulative 46.0 hours Start 2020.03.06 @ 21:32:32 End 2020.03.06 @ 21:54:00 Sessions 1 Manual Loads 0 Difficulty Rogue Special Mode None Game No. 70 Rogue 70 Adventurer 0 Explorer 0 Win Type - Total 0 Types 0/0/0/0/0/0/0 Lore% 29 Gallery% 37 Achievement% 20 Wizard Run 0 Options --------- ASCII 0 Keyboard 0 Movement Mouse Keybinds 0 Fullscreen 1 Font 18/Smallcaps Map View 76x50 Tactical HUD 1 Map Filters NONE Filters NONE Steam 1 RUN: fd0a1776-761c-4b00-bd30-0cbc7b0eb1c3